[Event "Asian Amateur-ch Open 2022"]
[Site "Muscat"]
[Date "2022.10.02"]
[Round "2.13"]
[White "Al Amri, Mahad"]
[Black "Salim Issa, Ali Shamas"]
[Result "1-0"]
[ECO "B84"]
[WhiteElo "1589"]
[BlackElo "1886"]
[Annotator "NA RC COMBH"]
[PlyCount "81"]
[EventDate "2022.09.29"]
[EventType "swiss"]
[SourceTitle "playchess.com"]
[Source "ChessBase"]
[SourceQuality "1"]
[TimeControl "5400+30"]

1. e4 {[%emt 0:00:03]} c5 {[%emt 0:00:12]} 2. Nf3 {[%emt 0:00:38]} e6 {[%emt 0:00:17]} 3. d4 {[%emt 0:02:52]} cxd4 {[%emt 0:00:08]} 4. Nxd4 {[%emt 0:00:11]} a6 {[%emt 0:00:07]} 5. Nc3 {[%emt 0:00:51]} Qc7 {[%emt 0:00:19]} 6. a3 {[%emt 0:02:49]} Nf6 {[%emt 0:00:21]} 7. Be2 {[%emt 0:00:26]} d6 {[%emt 0:00:24]} 8. Be3 {[%emt 0:00:25]} Nbd7 {[%emt 0:00:47]} 9. O-O {[%emt 0:01:12]} b5 {[%emt 0:00:28]} 10. Qd2 {[%emt 0:03:54]} Bb7 {[%emt 0:00:09]} 11. f3 {[%emt 0:00:39]} Be7 {[%emt 0:00:16]} 12. Rad1 {[%emt 0:03:06]} O-O {[%emt 0:00:37]} 13. g4 {[%emt 0:00:52]} Rfc8 {[%emt 0:01:45]} 14. Rf2 {[%emt 0:01:06]} Ne5 {[%emt 0:00:37]} 15. g5 {[%emt 0:02:44]} Nfd7 {[%emt 0:00:43]} 16. f4 {[%emt 0:03:16]} Nc4 {[%emt 0:00:09]} 17. Bxc4 {[%emt 0:00:18]} Qxc4 {[%emt 0:00:05]} 18. f5 {[%emt 0:00:51]} e5 {[%emt 0:00:16]} 19. Nde2 {[%emt 0:04:00]} Bxe4 {[%emt 0:00:56]} 20. f6 {[%emt 0:00:22]} Bf8 {[%emt 0:01:39]} 21. Ng3 {[%emt 0:01:58]} Bb7 {[%emt 0:00:24]} 22. fxg7 {[%emt 0:03:26]} Bxg7 {[%emt 0:00:50]} 23. Qxd6 {[%emt 0:01:28]} Nf8 {[%emt 0:00:31]} 24. Rdf1 {[%emt 0:10:04]} Rc7 {[%emt 0:00:59]} 25. Qd3 {[%emt 0:02:14]} Qc6 {[%emt 0:00:45]} 26. Nce4 {[%emt 0:00:51]} Ng6 {[%emt 0:02:03]} 27. Nc5 {[%emt 0:02:40]} Nf4 {[%emt 0:00:19]} 28. Bxf4 {[%emt 0:04:51]} Qxc5 {[%emt 0:00:28]} 29. Be3 {[%emt 0:00:41]} Qc6 {[%emt 0:00:07]} 30. b4 {[%emt 0:03:44]} Qe6 {[%emt 0:08:46]} 31. Qf5 {[%emt 0:06:01]} Qc6 {[%emt 0:01:56]} 32. Rd1 {[%emt 0:00:49]} Qe8 {[%emt 0:02:56]} 33. Rd6 {[%emt 0:09:22]} Rd8 {[%emt 0:01:41]} 34. Rfd2 {[%emt 0:00:45]} Rxd6 {[%emt 0:01:17]} 35. Rxd6 {[%emt 0:00:14]} Bf8 {[%emt 0:00:25]} 36. Nh5 {[%emt 0:00:55]} Bg7 {[%emt 0:01:02]} 37. Rh6 {[%emt 0:01:35]} Qd7 {[%emt 0:01:22]} 38. Qxh7+ {[%emt 0:00:34]} Kf8 {[%emt 0:00:08]} 39. Qxg7+ {[%emt 0:00:20]} Ke8 {[%emt 0:01:46]} 40. Rh8+ {[%emt 0:00:36]} Ke7 {[%emt 0:00:11]} 41. Qf6# {[%emt 0:00:12]} 1-0

[Event "Asian Amateur-ch Open 2022"]
[Site "Muscat"]
[Date "2022.10.02"]
[Round "2.14"]
[White "Sharaf, Khaleel"]
[Black "Al Zadjali, Abdul Rahman"]
[Result "0-1"]
[ECO "D11"]
[WhiteElo "1874"]
[BlackElo "1534"]
[Annotator "NA RC COMBH"]
[PlyCount "110"]
[EventDate "2022.09.29"]
[EventType "swiss"]
[SourceTitle "playchess.com"]
[Source "ChessBase"]
[SourceQuality "1"]
[TimeControl "5400+30"]

1. c4 {[%emt 0:00:10]} Nf6 {[%emt 0:00:18]} 2. Nf3 {[%emt 0:00:03]} c6 {[%emt 0:00:17]} 3. g3 {[%emt 0:00:33]} d5 {[%emt 0:01:25]} 4. d4 {[%emt 0:00:15]} dxc4 {[%emt 0:01:00]} 5. Bg2 {[%emt 0:00:53]} Bf5 {[%emt 0:00:53]} 6. Nc3 {[%emt 0:02:03]} Nbd7 {[%emt 0:01:38]} 7. a4 {[%emt 0:01:38]} a5 {[%emt 0:01:32]} 8. O-O {[%emt 0:01:52]} e6 {[%emt 0:00:41]} 9. h3 {[%emt 0:02:15]} Bb4 {[%emt 0:00:45]} 10. Bg5 {[%emt 0:13:47]} h6 {[%emt 0:04:38]} 11. Bf4 {[%emt 0:05:19]} Nd5 {[%emt 0:13:12]} 12. Bd2 {[%emt 0:05:09]} N7f6 {[%emt 0:03:32]} 13. Ne5 {[%emt 0:01:13]} Nb6 {[%emt 0:00:46]} 14. Bc1 {[%emt 0:09:56]} Bxc3 {[%emt 0:17:25]} 15. bxc3 {[%emt 0:00:04]} Ne4 {[%emt 0:00:21]} 16. Qc2 {[%emt 0:11:34]} Nxg3 {[%emt 0:23:23]} 17. e4 {[%emt 0:00:25]} Bxe4 {[%emt 0:00:23]} 18. Bxe4 {[%emt 0:01:19]} Nxf1 {[%emt 0:00:17]} 19. Bg6 {[%emt 0:10:02]} O-O {[%emt 0:01:56]} 20. Bh7+ {[%emt 0:10:26]} Kh8 {[%emt 0:00:06]} 21. Kxf1 {[%emt 0:22:04]} g6 {[%emt 0:08:44]} 22. Bxg6 {[%emt 0:00:00]} fxg6 {[%emt 0:00:49]} 23. Nxg6+ {[%emt 0:00:00]} Kg7 {[%emt 0:00:15]} 24. Nxf8 {[%emt 0:00:00]} Qxf8 {[%emt 0:00:16]} 25. Qe4 {[%emt 0:00:00]} Qf5 {[%emt 0:02:20]} 26. Qh4 {[%emt 0:00:00]} Qd3+ {[%emt 0:00:16]} 27. Kg1 {[%emt 0:00:00]} Qg6+ {[%emt 0:00:29]} 28. Kh2 {[%emt 0:00:00]} Nd5 {[%emt 0:01:30]} 29. Bd2 {[%emt 0:00:00]} Kh7 {[%emt 0:01:53]} 30. Rg1 {[%emt 0:00:00]} Qf6 {[%emt 0:00:33]} 31. Bg5 {[%emt 0:00:48]} Qf8 {[%emt 0:00:12]} 32. Qe4+ {[%emt 0:00:22]} Qf5 {[%emt 0:00:19]} 33. Qh4 {[%emt 0:00:43]} Qf8 {[%emt 0:00:27]} 34. Rg2 {[%emt 0:00:45]} b5 {[%emt 0:00:47]} 35. Qe4+ {[%emt 0:01:48]} Qf5 {[%emt 0:00:02]} 36. Qh4 {[%emt 0:00:09]} Qf8 {[%emt 0:00:01]} 37. Bc1 {[%emt 0:00:40]} Ra7 {[%emt 0:01:41]} 38. Qh5 {[%emt 0:01:47]} Nf4 {[%emt 0:01:56]} 39. Qf3 {[%emt 0:00:51]} Rf7 {[%emt 0:00:11]} 40. Qe4+ {[%emt 0:00:03]} Kh8 {[%emt 0:00:35]} 41. Qe5+ {[%emt 0:00:21]} Kh7 {[%emt 0:00:20]} 42. Qe4+ {[%emt 0:01:01]} Kh8 {[%emt 0:00:03]} 43. Rg4 {[%emt 0:00:46]} Nd3 {[%emt 0:01:10]} 44. Bxh6 {[%emt 0:00:47]} Rxf2+ {[%emt 0:00:39]} 45. Kg3 {[%emt 0:00:13]} Qd6+ {[%emt 0:02:16]} 46. Kh4 {[%emt 0:00:39]} Qe7+ {[%emt 0:00:28]} 47. Kg3 {[%emt 0:00:36]} Qd6+ {[%emt 0:00:06]} 48. Kh4 {[%emt 0:00:11]} Qe7+ {[%emt 0:00:01]} 49. Kh5 {[%emt 0:00:36]} Qf7+ {[%emt 0:00:34]} 50. Kh4 {[%emt 0:00:23]} Qe7+ {[%emt 0:00:00]} 51. Kg3 {[%emt 0:00:02]} Qd6+ {[%emt 0:00:11]} 52. Kh4 {[%emt 0:00:38]} Qe7+ {[%emt 0:00:01]} 53. Kh5 {[%emt 0:00:59]} Qf7+ {[%emt 0:00:02]} 54. Qg6 {[%emt 0:00:44]} Rf5+ {[%emt 0:01:12]} 55. Rg5 {[%emt 0:00:36]} Nf4+ {[%emt 0:00:19]} 0-1

[Event "Asian Amateur-ch Open 2022"]
[Site "Muscat"]
[Date "2022.10.02"]
[Round "2.15"]
[White "Khalili, Mehdi"]
[Black "Bagheri, Majid"]
[Result "1-0"]
[ECO "D02"]
[WhiteElo "1575"]
[BlackElo "1870"]
[Annotator "NA RC COMBH"]
[PlyCount "108"]
[EventDate "2022.09.29"]
[EventType "swiss"]
[SourceTitle "playchess.com"]
[Source "ChessBase"]
[SourceQuality "1"]
[TimeControl "5400+30"]

1. d4 {[%emt 0:00:09]} Nf6 {[%emt 0:00:09]} 2. Nf3 {[%emt 0:00:19]} g6 {[%emt 0:00:09]} 3. Bf4 {[%emt 0:00:42]} Bg7 {[%emt 0:00:17]} 4. e3 {[%emt 0:01:42]} d5 {[%emt 0:00:54]} 5. h3 {[%emt 0:00:42]} O-O {[%emt 0:00:16]} 6. Bd3 {[%emt 0:00:52]} c5 {[%emt 0:00:10]} 7. c3 {[%emt 0:00:21]} Nc6 {[%emt 0:01:41]} 8. O-O {[%emt 0:01:12]} Nd7 {[%emt 0:05:13]} 9. Nbd2 {[%emt 0:15:46]} e5 {[%emt 0:02:02]} 10. dxe5 {[%emt 0:00:40]} Ndxe5 {[%emt 0:00:04]} 11. Be2 {[%emt 0:10:26]} Be6 {[%emt 0:06:46]} 12. Nxe5 {[%emt 0:30:02]} Nxe5 {[%emt 0:00:28]} 13. Nf3 {[%emt 0:13:42]} Nc6 {[%emt 0:02:04]} 14. Ng5 {[%emt 0:09:17]} Qb6 {[%emt 0:07:51]} 15. Nxe6 {[%emt 0:04:51]} fxe6 {[%emt 0:00:05]} 16. Bg4 {[%emt 0:04:24]} Ne7 {[%emt 0:02:21]} 17. Qb3 {[%emt 0:00:48]} Qc6 {[%emt 0:00:23]} 18. Rad1 {[%emt 0:00:52]} Kh8 {[%emt 0:10:02]} 19. Bh2 {[%emt 0:01:40]} Nf5 {[%emt 0:09:24]} 20. Rd2 {[%emt 0:01:15]} Rad8 {[%emt 0:01:56]} 21. Rfd1 {[%emt 0:00:16]} Bf6 {[%emt 0:03:40]} 22. Bf3 {[%emt 0:00:41]} Nh4 {[%emt 0:00:25]} 23. Be2 {[%emt 0:00:48]} c4 {[%emt 0:04:21]} 24. Qa3 {[%emt 0:00:25]} d4 {[%emt 0:00:32]} 25. Bf1 {[%emt 0:00:15]} d3 {[%emt 0:01:14]} 26. b4 {[%emt 0:00:30]} b5 {[%emt 0:01:20]} 27. Qb2 {[%emt 0:00:36]} Qe4 {[%emt 0:03:34]} 28. a4 {[%emt 0:00:21]} a6 {[%emt 0:00:31]} 29. axb5 {[%emt 0:00:04]} axb5 {[%emt 0:00:09]} 30. Ra1 {[%emt 0:00:06]} Ra8 {[%emt 0:05:51]} 31. Ra5 {[%emt 0:00:10]} Qc6 {[%emt 0:02:23]} 32. Qa3 {[%emt 0:00:32]} Rxa5 {[%emt 0:06:37]} 33. bxa5 {[%emt 0:00:05]} Ra8 {[%emt 0:00:14]} 34. Bd6 {[%emt 0:01:25]} Kg8 {[%emt 0:01:32]} 35. Bb4 {[%emt 0:00:01]} Be5 {[%emt 0:01:32]} 36. Qc1 {[%emt 0:00:29]} Bc7 {[%emt 0:00:21]} 37. Ra2 {[%emt 0:00:38]} Ra6 {[%emt 0:00:51]} 38. Qd1 {[%emt 0:00:09]} h5 {[%emt 0:02:11]} 39. Qe1 {[%emt 0:01:18]} Nf5 {[%emt 0:03:13]} 40. g3 {[%emt 0:00:32]} e5 {[%emt 0:00:57]} 41. Bg2 {[%emt 0:00:08]} e4 {[%emt 0:00:13]} 42. Qd1 {[%emt 0:00:16]} Bd6 {[%emt 0:01:00]} 43. Bxd6 {[%emt 0:00:34]} Nxd6 {[%emt 0:00:09]} 44. g4 {[%emt 0:00:19]} Qc5 {[%emt 0:00:52]} 45. gxh5 {[%emt 0:00:07]} gxh5 {[%emt 0:00:27]} 46. Kh1 {[%emt 0:01:02]} Qe5 {[%emt 0:00:44]} 47. Qg1 {[%emt 0:00:08]} Kh8 {[%emt 0:00:16]} 48. Bf1 {[%emt 0:00:18]} Nf7 {[%emt 0:00:39]} 49. Qg3 {[%emt 0:00:57]} Qxc3 {[%emt 0:01:23]} 50. Qb8+ {[%emt 0:00:28]} Kg7 {[%emt 0:00:19]} 51. Qxb5 {[%emt 0:00:19]} Rg6 {[%emt 0:00:29]} 52. Qxh5 {[%emt 0:01:28]} Qc1 {[%emt 0:00:17]} 53. Qxg6+ {[%emt 0:01:21]} Kxg6 {[%emt 0:00:02]} 54. Kg1 {[%emt 0:00:01]} d2 {[%emt 0:00:45]} 1-0

[Event "Asian Amateur-ch Open 2022"]
[Site "Muscat"]
[Date "2022.10.02"]
[Round "2.16"]
[White "Al Hanai, Said Hashil"]
[Black "Gabdushev, Arman"]
[Result "0-1"]
[ECO "D00"]
[WhiteElo "1537"]
[BlackElo "1827"]
[Annotator "NA RC COMBH"]
[PlyCount "158"]
[EventDate "2022.09.29"]
[EventType "swiss"]
[SourceTitle "playchess.com"]
[Source "ChessBase"]
[SourceQuality "1"]
[TimeControl "5400+30"]

1. d4 {[%emt 0:00:17]} c6 {[%emt 0:00:13]} 2. Nf3 {[%emt 0:00:25]} d5 {[%emt 0:00:11]} 3. Nc3 {[%emt 0:00:51]} Bf5 {[%emt 0:00:14]} 4. Nh4 {[%emt 0:00:44]} Bg6 {[%emt 0:00:23]} 5. Nxg6 {[%emt 0:00:26]} hxg6 {[%emt 0:00:05]} 6. Bf4 {[%emt 0:01:34]} Nf6 {[%emt 0:00:22]} 7. Na4 {[%emt 0:00:46]} e6 {[%emt 0:00:32]} 8. Bd2 {[%emt 0:00:54]} Nbd7 {[%emt 0:01:47]} 9. e3 {[%emt 0:00:43]} b5 {[%emt 0:02:37]} 10. Nc3 {[%emt 0:00:26]} a6 {[%emt 0:00:25]} 11. Bd3 {[%emt 0:00:13]} c5 {[%emt 0:00:12]} 12. O-O {[%emt 0:00:54]} Bd6 {[%emt 0:01:17]} 13. f4 {[%emt 0:00:41]} Qb6 {[%emt 0:01:49]} 14. Qf3 {[%emt 0:01:00]} cxd4 {[%emt 0:02:36]} 15. exd4 {[%emt 0:00:08]} Qxd4+ {[%emt 0:01:00]} 16. Be3 {[%emt 0:02:09]} Qb4 {[%emt 0:00:19]} 17. Rab1 {[%emt 0:00:27]} Bc5 {[%emt 0:01:53]} 18. Rfe1 {[%emt 0:00:11]} Bxe3+ {[%emt 0:00:47]} 19. Rxe3 {[%emt 0:00:38]} O-O {[%emt 0:02:38]} 20. Ree1 {[%emt 0:00:26]} Nc5 {[%emt 0:02:27]} 21. Qf2 {[%emt 0:07:08]} Nxd3 {[%emt 0:01:42]} 22. cxd3 {[%emt 0:03:14]} Rfc8 {[%emt 0:01:51]} 23. Kh1 {[%emt 0:01:05]} Qc5 {[%emt 0:02:29]} 24. d4 {[%emt 0:04:04]} Qc4 {[%emt 0:01:12]} 25. h3 {[%emt 0:01:11]} b4 {[%emt 0:00:28]} 26. Na4 {[%emt 0:00:50]} Qc2 {[%emt 0:00:29]} 27. Qxc2 {[%emt 0:00:33]} Rxc2 {[%emt 0:00:07]} 28. Rec1 {[%emt 0:00:55]} Rd2 {[%emt 0:02:41]} 29. Rd1 {[%emt 0:00:08]} Rxd1+ {[%emt 0:01:12]} 30. Rxd1 {[%emt 0:00:02]} Rc8 {[%emt 0:00:44]} 31. Nc5 {[%emt 0:00:06]} a5 {[%emt 0:00:39]} 32. Re1 {[%emt 0:00:43]} Nh5 {[%emt 0:00:46]} 33. Nb7 {[%emt 0:01:57]} Rc2 {[%emt 0:00:57]} 34. Rb1 {[%emt 0:01:40]} a4 {[%emt 0:01:13]} 35. Nc5 {[%emt 0:00:18]} a3 {[%emt 0:00:41]} 36. Nd3 {[%emt 0:01:23]} axb2 {[%emt 0:00:59]} 37. Kh2 {[%emt 0:01:13]} Rd2 {[%emt 0:00:31]} 38. Nxb4 {[%emt 0:00:35]} Nxf4 {[%emt 0:01:59]} 39. a4 {[%emt 0:00:05]} Rxd4 {[%emt 0:01:43]} 40. Rxb2 {[%emt 1:09:27]} Nd3 {[%emt 0:00:54]} 41. Nxd3 {[%emt 0:00:00]} Rxd3 {[%emt 0:00:15]} 42. Ra2 {[%emt 0:00:00]} Rc3 {[%emt 0:00:51]} 43. a5 {[%emt 0:01:30]} Rc7 {[%emt 0:00:11]} 44. a6 {[%emt 0:00:00]} Ra7 {[%emt 0:00:11]} 45. Kg3 {[%emt 0:00:00]} Kf8 {[%emt 0:00:34]} 46. Kf4 {[%emt 0:00:00]} f6 {[%emt 0:00:26]} 47. h4 {[%emt 0:00:00]} Ke7 {[%emt 0:00:53]} 48. g4 {[%emt 0:00:00]} e5+ {[%emt 0:00:16]} 49. Ke3 {[%emt 0:00:00]} Kd6 {[%emt 0:00:36]} 50. Kd3 {[%emt 0:00:00]} Kc6 {[%emt 0:00:26]} 51. Ra5 {[%emt 0:00:00]} d4 {[%emt 0:01:40]} 52. Kc4 {[%emt 0:00:00]} Kb6 {[%emt 0:00:20]} 53. Rd5 {[%emt 0:00:00]} Kxa6 {[%emt 0:00:25]} 54. Kc5 {[%emt 0:00:00]} Rb7 {[%emt 0:01:01]} 55. Kc6 {[%emt 0:00:00]} Rf7 {[%emt 0:02:46]} 56. Rc5 {[%emt 0:00:00]} Rf8 {[%emt 0:02:29]} 57. Rd5 {[%emt 0:00:00]} Rh8 {[%emt 0:01:13]} 58. g5 {[%emt 0:00:00]} Rxh4 {[%emt 0:00:24]} 59. gxf6 {[%emt 0:00:00]} gxf6 {[%emt 0:00:08]} 60. Rd8 {[%emt 0:00:00]} Ka5 {[%emt 0:02:08]} 61. Kc5 {[%emt 0:00:00]} Ka4 {[%emt 0:01:41]} 62. Kc4 {[%emt 0:00:00]} Ka3 {[%emt 0:00:08]} 63. Rd6 {[%emt 0:10:00]} Rf4 {[%emt 0:57:54]} 64. Rb6 {[%emt 0:00:00]} g5 {[%emt 0:00:00]} 65. Kd3 {[%emt 0:00:00]} g4 {[%emt 0:00:00]} 66. Ra6+ {[%emt 0:01:30]} Kb4 {[%emt 0:01:30]} 67. Ra1 {[%emt 0:00:00]} Kc5 {[%emt 0:00:00]} 68. Ra5+ {[%emt 0:00:00]} Kd6 {[%emt 0:00:00]} 69. Ra6+ {[%emt 0:00:00]} Kd5 {[%emt 0:00:00]} 70. Ra5+ {[%emt 0:00:00]} Ke6 {[%emt 0:00:00]} 71. Ra1 {[%emt 0:00:00]} Kf5 {[%emt 0:00:00]} 72. Rg1 {[%emt 0:00:00]} Rf3+ {[%emt 0:00:00]} 73. Ke2 {[%emt 0:00:00]} Kf4 {[%emt 0:00:00]} 74. Rd1 {[%emt 0:00:00]} d3+ {[%emt 0:00:00]} 75. Ke1 {[%emt 0:00:00]} e4 {[%emt 0:00:00]} 76. Rd2 {[%emt 0:00:00]} g3 {[%emt 0:00:00]} 77. Rg2 {[%emt 0:00:00]} e3 {[%emt 0:00:00]} 78. Rg1 {[%emt 0:00:00]} d2+ {[%emt 0:00:00]} 79. Kd1 {[%emt 0:00:00]} g2 {[%emt 0:00:00]} 0-1

[Event "Asian Amateur-ch Open 2022"]
[Site "Muscat"]
[Date "2022.10.02"]
[Round "2.17"]
[White "Abdivaliev, Daniial"]
[Black "Nadeem Aziz"]
[Result "1/2-1/2"]
[ECO "B48"]
[WhiteElo "1528"]
[BlackElo "1797"]
[Annotator "NA RC COMBH"]
[PlyCount "175"]
[EventDate "2022.09.29"]
[EventType "swiss"]
[SourceTitle "playchess.com"]
[Source "ChessBase"]
[SourceQuality "1"]
[TimeControl "5400+30"]

1. e4 {[%emt 0:02:00]} c5 {[%emt 0:00:02]} 2. Nf3 {[%emt 0:00:06]} e6 {[%emt 0:00:02]} 3. d4 {[%emt 0:00:15]} cxd4 {[%emt 0:00:03]} 4. Nxd4 {[%emt 0:00:03]} Nc6 {[%emt 0:00:08]} 5. Nc3 {[%emt 0:05:33]} Qc7 {[%emt 0:00:17]} 6. Be3 {[%emt 0:00:58]} a6 {[%emt 0:00:01]} 7. Qd2 {[%emt 0:02:13]} Nf6 {[%emt 0:00:56]} 8. f3 {[%emt 0:00:32]} Bb4 {[%emt 0:01:43]} 9. a3 {[%emt 0:01:08]} Be7 {[%emt 0:00:54]} 10. g4 {[%emt 0:01:24]} d6 {[%emt 0:00:55]} 11. h4 {[%emt 0:00:34]} b5 {[%emt 0:11:20]} 12. O-O-O {[%emt 0:01:44]} Nxd4 {[%emt 0:02:14]} 13. Qxd4 {[%emt 0:01:12]} e5 {[%emt 0:00:18]} 14. Qd2 {[%emt 0:00:40]} Bb7 {[%emt 0:00:49]} 15. g5 {[%emt 0:01:19]} Nh5 {[%emt 0:04:44]} 16. Bh3 {[%emt 0:00:35]} Qc4 {[%emt 0:06:02]} 17. Bf1 {[%emt 0:00:51]} Qc7 {[%emt 0:00:12]} 18. Nd5 {[%emt 0:02:52]} Bxd5 {[%emt 0:01:00]} 19. Qxd5 {[%emt 0:00:05]} Rc8 {[%emt 0:00:24]} 20. Rh2 {[%emt 0:00:04]} Qc6 {[%emt 0:01:13]} 21. Bh3 {[%emt 0:04:52]} Qxd5 {[%emt 0:01:21]} 22. Rxd5 {[%emt 0:00:12]} Rc4 {[%emt 0:00:25]} 23. Bf1 {[%emt 0:02:04]} Rc6 {[%emt 0:03:20]} 24. a4 {[%emt 0:00:20]} bxa4 {[%emt 0:08:32]} 25. Ra5 {[%emt 0:00:27]} O-O {[%emt 0:00:33]} 26. Rxa4 {[%emt 0:02:58]} Rd8 {[%emt 0:06:49]} 27. Bc4 {[%emt 0:09:26]} Nf4 {[%emt 0:02:54]} 28. Bd5 {[%emt 0:00:26]} Nxd5 {[%emt 0:00:07]} 29. exd5 {[%emt 0:00:02]} Rcc8 {[%emt 0:00:55]} 30. Rxa6 {[%emt 0:00:31]} Ra8 {[%emt 0:00:01]} 31. Ra3 {[%emt 0:02:00]} Rdc8 {[%emt 0:04:29]} 32. Rxa8 {[%emt 0:05:15]} Rxa8 {[%emt 0:43:47]} 33. b3 {[%emt 0:54:19]} f5 {[%emt 0:00:00]} 34. f4 {[%emt 0:00:00]} Ra1+ {[%emt 0:00:00]} 35. Kb2 {[%emt 0:00:00]} Rf1 {[%emt 0:00:00]} 36. fxe5 {[%emt 0:00:00]} dxe5 {[%emt 0:00:00]} 37. c4 {[%emt 0:00:00]} f4 {[%emt 0:00:00]} 38. Bb6 {[%emt 0:00:00]} e4 {[%emt 0:00:00]} 39. Re2 {[%emt 0:00:00]} e3 {[%emt 0:00:00]} 40. Kc3 {[%emt 0:00:00]} Rd1 {[%emt 0:00:00]} 41. Bc7 {[%emt 0:00:00]} f3 {[%emt 0:00:00]} 42. Rxe3 {[%emt 0:00:00]} f2 {[%emt 0:00:00]} 43. Rf3 {[%emt 0:00:00]} f1=Q {[%emt 0:00:00]} 44. Rxf1 {[%emt 0:00:00]} Rxf1 {[%emt 0:00:00]} 45. d6 {[%emt 0:00:00]} Kf7 {[%emt 0:00:00]} 46. b4 {[%emt 0:00:00]} Bxd6 {[%emt 0:00:00]} 47. Bxd6 {[%emt 0:00:00]} Ke6 {[%emt 0:00:00]} 48. c5 {[%emt 0:00:00]} Kd5 {[%emt 0:00:00]} 49. b5 {[%emt 0:00:00]} Rb1 {[%emt 0:00:00]} 50. b6 {[%emt 0:00:00]} Kc6 {[%emt 0:00:00]} 51. g6 {[%emt 0:00:00]} hxg6 {[%emt 0:00:00]} 52. Kd4 {[%emt 0:00:00]} Rb4+ {[%emt 0:00:00]} 53. Ke5 {[%emt 0:00:00]} Rxh4 {[%emt 0:00:00]} 54. Ke6 {[%emt 0:00:00]} Rg4 {[%emt 0:00:00]} 55. Kf7 {[%emt 0:00:00]} Rg1 {[%emt 0:00:00]} 56. Kxg7 {[%emt 0:00:00]} g5 {[%emt 0:00:00]} 57. Kg6 {[%emt 0:00:00]} g4 {[%emt 0:00:00]} 58. Kg5 {[%emt 0:00:00]} Kb7 {[%emt 0:01:03]} 59. Kh4 {[%emt 0:00:00]} Kc6 {[%emt 0:00:06]} 60. Bh2 {[%emt 0:00:28]} Rh1 {[%emt 0:03:03]} 61. Kg3 {[%emt 0:01:21]} Kxc5 {[%emt 0:00:30]} 62. Kg2 {[%emt 0:03:26]} Rb1 {[%emt 0:00:12]} 63. Bc7 {[%emt 0:00:15]} Rb3 {[%emt 0:00:12]} 64. Bd8 {[%emt 0:00:58]} Kd4 {[%emt 0:00:09]} 65. Bh4 {[%emt 0:01:28]} Ke4 {[%emt 0:00:09]} 66. Bd8 {[%emt 0:00:12]} Kf4 {[%emt 0:00:16]} 67. Bc7+ {[%emt 0:00:13]} Kf5 {[%emt 0:00:04]} 68. Bd8 {[%emt 0:00:38]} g3 {[%emt 0:02:31]} 69. Bc7 {[%emt 0:03:59]} Kg4 {[%emt 0:00:08]} 70. Be5 {[%emt 0:01:38]} Rxb6 {[%emt 0:07:18]} 71. Bxg3 {[%emt 0:00:06]} Rb2+ {[%emt 0:00:38]} 72. Bf2 {[%emt 0:00:04]} Rc2 {[%emt 0:00:15]} 73. Kg1 {[%emt 0:00:22]} Kf3 {[%emt 0:00:46]} 74. Bd4 {[%emt 0:00:14]} Rd2 {[%emt 0:00:59]} 75. Bb6 {[%emt 0:00:05]} Rg2+ {[%emt 0:00:06]} 76. Kh1 {[%emt 0:00:23]} Rg6 {[%emt 0:00:05]} 77. Bg1 {[%emt 0:00:06]} Ke2 {[%emt 0:00:04]} 78. Bh2 {[%emt 0:01:00]} Kf1 {[%emt 0:00:10]} 79. Bf4 {[%emt 0:00:09]} Rg4 {[%emt 0:00:08]} 80. Bh2 {[%emt 0:00:09]} Kf2 {[%emt 0:00:16]} 81. Bd6 {[%emt 0:00:18]} Rh4+ {[%emt 0:00:10]} 82. Bh2 {[%emt 0:00:02]} Kf3 {[%emt 0:00:03]} 83. Kg1 {[%emt 0:00:10]} Re4 {[%emt 0:00:16]} 84. Bd6 {[%emt 0:00:09]} Re1+ {[%emt 0:00:01]} 85. Kh2 {[%emt 0:00:11]} Re6 {[%emt 0:00:36]} 86. Bc7 {[%emt 0:00:48]} Rh6+ {[%emt 0:00:03]} 87. Kg1 {[%emt 0:00:05]} Rh7 {[%emt 0:00:15]} 88. Bd6 {[%emt 0:00:10]} 1/2-1/2

[Event "Asian Amateur-ch Open 2022"]
[Site "Muscat"]
[Date "2022.10.02"]
[Round "2.18"]
[White "Shreyas Seshadri Nallore"]
[Black "Vijay Chauhan"]
[Result "1-0"]
[ECO "A05"]
[WhiteElo "1791"]
[BlackElo "1526"]
[Annotator "NA RC COMBH"]
[PlyCount "115"]
[EventDate "2022.09.29"]
[EventType "swiss"]
[SourceTitle "playchess.com"]
[Source "ChessBase"]
[SourceQuality "1"]
[TimeControl "5400+30"]

1. Nf3 {[%emt 0:00:07]} Nf6 {[%emt 0:00:06]} 2. b3 {[%emt 0:00:11]} g6 {[%emt 0:00:16]} 3. Bb2 {[%emt 0:00:10]} Bg7 {[%emt 0:00:25]} 4. e3 {[%emt 0:00:14]} b6 {[%emt 0:01:04]} 5. d4 {[%emt 0:01:26]} O-O {[%emt 0:01:55]} 6. Bd3 {[%emt 0:00:38]} Bb7 {[%emt 0:00:09]} 7. Nbd2 {[%emt 0:00:12]} d5 {[%emt 0:00:57]} 8. c4 {[%emt 0:00:43]} c6 {[%emt 0:01:01]} 9. O-O {[%emt 0:00:32]} Nbd7 {[%emt 0:00:35]} 10. Qe2 {[%emt 0:03:39]} Nh5 {[%emt 0:05:11]} 11. cxd5 {[%emt 0:06:10]} cxd5 {[%emt 0:00:30]} 12. Rac1 {[%emt 0:03:21]} Rc8 {[%emt 0:03:43]} 13. Rxc8 {[%emt 0:13:12]} Qxc8 {[%emt 0:00:18]} 14. Ba3 {[%emt 0:01:25]} Re8 {[%emt 0:02:51]} 15. Rc1 {[%emt 0:01:48]} Qb8 {[%emt 0:02:55]} 16. Bb5 {[%emt 0:06:31]} Qd8 {[%emt 0:06:04]} 17. h3 {[%emt 0:10:21]} Rf8 {[%emt 0:04:58]} 18. Ba6 {[%emt 0:02:30]} Qb8 {[%emt 0:21:31]} 19. Bxe7 {[%emt 0:09:17]} Rc8 {[%emt 0:00:54]} 20. Rxc8+ {[%emt 0:01:52]} Qxc8 {[%emt 0:01:03]} 21. Bxb7 {[%emt 0:01:23]} Qxb7 {[%emt 0:00:03]} 22. Qb5 {[%emt 0:01:43]} a6 {[%emt 0:01:16]} 23. Qb4 {[%emt 0:02:08]} Nhf6 {[%emt 0:04:12]} 24. Bxf6 {[%emt 0:07:06]} Bxf6 {[%emt 0:03:37]} 25. Qd6 {[%emt 0:01:08]} Kg7 {[%emt 0:01:25]} 26. g4 {[%emt 0:03:33]} h6 {[%emt 0:02:39]} 27. h4 {[%emt 0:02:28]} Bd8 {[%emt 0:02:58]} 28. Kg2 {[%emt 0:02:48]} b5 {[%emt 0:05:21]} 29. g5 {[%emt 0:01:49]} h5 {[%emt 0:01:52]} 30. Ne5 {[%emt 0:01:41]} Nxe5 {[%emt 0:00:16]} 31. Qxe5+ {[%emt 0:00:17]} f6 {[%emt 0:06:31]} 32. Qe8 {[%emt 0:02:43]} Qe7 {[%emt 0:06:56]} 33. Qxe7+ {[%emt 0:08:47]} Bxe7 {[%emt 0:00:02]} 34. gxf6+ {[%emt 0:01:06]} Kxf6 {[%emt 0:00:23]} 35. Kg3 {[%emt 0:00:58]} Kf5 {[%emt 0:01:02]} 36. Kh3 {[%emt 0:01:48]} a5 {[%emt 0:00:30]} 37. a4 {[%emt 0:00:43]} b4 {[%emt 0:00:20]} 38. Kg3 {[%emt 0:01:02]} Bd6+ {[%emt 0:00:19]} 39. Kh3 {[%emt 0:00:05]} Be7 {[%emt 0:00:03]} 40. f3 {[%emt 0:00:40]} Bf8 {[%emt 0:03:05]} 41. Nf1 {[%emt 0:00:23]} Bh6 {[%emt 0:01:38]} 42. Ng3+ {[%emt 0:00:25]} Ke6 {[%emt 0:00:22]} 43. e4 {[%emt 0:00:28]} Be3 {[%emt 0:00:21]} 44. Ne2 {[%emt 0:00:04]} Bf2 {[%emt 0:01:24]} 45. Nf4+ {[%emt 0:00:45]} Kf7 {[%emt 0:02:20]} 46. Nxd5 {[%emt 0:00:32]} Bxd4 {[%emt 0:00:10]} 47. Kg3 {[%emt 0:01:01]} Ke6 {[%emt 0:00:40]} 48. Kf4 {[%emt 0:00:48]} Kf7 {[%emt 0:02:36]} 49. Kg5 {[%emt 0:00:56]} Bc3 {[%emt 0:00:41]} 50. f4 {[%emt 0:00:48]} Bd4 {[%emt 0:00:41]} 51. f5 {[%emt 0:00:29]} gxf5 {[%emt 0:00:42]} 52. Kxf5 {[%emt 0:00:12]} Bf2 {[%emt 0:00:24]} 53. Nf4 {[%emt 0:01:09]} Bxh4 {[%emt 0:00:29]} 54. Nxh5 {[%emt 0:00:06]} Ke7 {[%emt 0:00:47]} 55. e5 {[%emt 0:00:07]} Bf2 {[%emt 0:00:31]} 56. Nf6 {[%emt 0:00:08]} Bd4 {[%emt 0:00:46]} 57. Ke4 {[%emt 0:00:24]} Bb6 {[%emt 0:00:16]} 58. Nd5+ {[%emt 0:00:04]} 1-0